{"text_format":"1","workbook":"xlsx","n_sheets":1,"sheets":["conceptos"],"not_rendered":{"charts":0,"images":2,"macros":1,"external_links":0,"defined_names":1,"comments":0,"pivot_tables":0},"unopened":[],"bounds":{"document_bytes":16777216,"sheet_cells":100000,"rows_first":2000,"rows_last":500,"rows_between":2000,"halvings":0,"cell_chars":16384,"cell_head_chars":4096},"cells_cut":0,"cells_raw":0,"read":"whole","date_system":"1900"}

{"sheet":"conceptos","index":0,"n_rows":177,"n_cols":8,"rows_kept":177,"cut":false,"hidden":false,"merged":[[174,0,174,4],[175,0,176,4],[13,0,13,6],[0,2,0,5],[9,2,9,5],[1,2,3,5],[4,2,4,3],[6,2,6,3],[7,2,7,3],[4,4,4,5],[5,4,5,5],[6,4,6,5],[7,4,7,5],[10,2,10,5],[11,2,11,5],[5,1,8,1]]}
[null,"GOBIERNO DEL ESTADO DE JALISCO","LICITACIÓN PÚBLICA ESTATAL"]
[null,"INSTITUTO DE LA INFRAESTRUCTURA FÍSICA EDUCATIVA DEL","E-REM-S-CON-04834-LP-0074-2020"]
[null,"ESTADO DE JALISCO"]
[]
[null,"DESCRIPCIÓN GENERAL DE LOS TRABAJOS:","FECHA DE INICIO:"]
[null,null,null,"FECHA DE TERMINACIÓN:"]
[null,null,"PLAZO DE EJECUCIÓN:"]
[null,null,"FECHA:"]
[]
[null,"RAZÓN SOCIAL DEL LICITANTE:","NOMBRE, CARGO Y FIRMA DEL LICITANTE:",null,null,null,"DOCUMENTO"]
[]
[]
[]
["PRESUPUESTO DE OBRA"]
[]
["CLAVE","DESCRIPCIÓN","UNIDAD","CANTIDAD","PRECIO UNITARIO ($)","PRECIO UNITARIO ($) CON LETRA","IMPORTE ($) M.N."]
["TRABAJO : SUP-CON-04834","TRABAJOS DE TERMINACIÓN DEL CENTRO DE INFORMACIÓN EN LA UNIVERSIDAD POLITÉCNICA DE LA ZONA METROPOLITANA DE GUADALAJARA CCT 14ESU0026R, UBICADA EN LA UNIÓN DEL CUATRO-LOMAS DE TEJEDA, MUNICIPIO DE TLAJOMULCO DE ZÚÑIGA, JALISCO.",null,null,null,null,{"$f":"TEXT(SUM(G18 + G70 + G87 + G119 + G125 + G128), \"$ #,##0.00 ;\")","v":"$ 0.00 "}]
["BIB","BIBLIOTECA",null,null,null,null,{"$f":"TEXT(SUM(G19 + G21 + G23 + G25 + G27 + G32 + G60 + G65), \"$ #,##0.00 ;\")","v":"$ 0.00 "}]
["BIB.01(150)","TRABAJOS PRELIMINARES                             ",null,null,null,null,{"$f":"TEXT(SUM(G20:G20), \"$ #,##0.00 ;\")","v":"$ 0.00 "}]
[150210,"DESPALME DE TERRENO NATURAL POR CUALQUIER MEDIO, CON ESPESOR PROMEDIO DE 20 CM. INCLUYE: CARGA Y ACARREO DEL PRODUCTO FUERA DE LA OBRA, MANO DE OBRA, HERRAMIENTA Y EQUIPO. (PROYECCION DE CUBIERTA).","M2 ","50.0000",0,"CERO PESOS 00/100 M.N.",0,260862]
["BIB.02(319)","ENTREPISOS, CUBIERTA Y ACABADOS DE AZOTEA         ",null,null,null,null,{"$f":"TEXT(SUM(G22:G22), \"$ #,##0.00 ;\")","v":"$ 0.00 "}]
[907462,"SUMINISTRO Y COLOCACION DE PLACA DE PLAFON, LINEA DE SOMBRA, CALIDAD ARMSTRONG, EN MODULOS DE 0.61 X 0.61 MTS., INCLUYE: NIVELACION,  MANO DE OBRA, HERRAMIENTAS Y ACARREOS, TRABAJO TERMINADO.","M2 ","300.0000",0,"CERO PESOS 00/100 M.N.",0,260863]
["BIB.03(372)","PISOS                                             ",null,null,null,null,{"$f":"TEXT(SUM(G24:G24), \"$ #,##0.00 ;\")","v":"$ 0.00 "}]
[962260,"SUMINISTRO Y COLOCACION DE PISO DE  LOSETA CERAMICA DE 40 X 60 CM., MCA. INTERCERAMIC DE PRIMERA, LINEA LINEN, CUALQUIER COLOR,  GRADO DE DUREZA (PEI) \"IV\" , ASENTADO CON PEGAPISO Y JUNTEDO CON JUNTEADOR (BOQUILLA) DE COLOR,  JUNTAS DE 4 MM. DE ANCHO, INCLUYE: TRAZO, CORTE, REMATES, ESCUADRE, DESPERDICIOS, DESPATINADO, EMBOQUILLADOS, CERTIFICADO DE CALIDAD, HERRAMIENTAS, MATERIALES,  MANO DE OBRA, LIMPIEZA  Y ACARREO DE MATERIALES AL SITIO DE SU UTILIZACION, EN CUALQUIER NIVEL.","M2 ","3.0000",0,"CERO PESOS 00/100 M.N.",0,260864]
["BIB.04(393)","PINTURA                                           ",null,null,null,null,{"$f":"TEXT(SUM(G26:G26), \"$ #,##0.00 ;\")","v":"$ 0.00 "}]
[393022,"PINTURA VINIL-ACRÍLICA A BASE DE AGUA ACABADO SEMIMATE  LAVABLE, PARA INTERIORES Y EXTERIORES QUE NO DESPRENDA VAPORES TÓXICOS NI OLORES DESAGRADABLES, CON LAS SIGUIENTES CARACTERÍSTICAS ( SÓLIDOS POR PESO 46-52%, SÓLIDOS POR VOLUMEN 30-36%, VISCOSIDAD DE 100-130 UK A 25°C, DENSIDAD > O = 1.2 TON/M3., LAVABILIDAD > O = 4,000 CICLOS, TIEMPO DE SECADO AL TACTO, 30-40 MIN., TIEMPO DE SECADO DURO < O = 8 HRS., CICLO DE CURADO DE 7 DIAS, PH 6-8, RENDIMIENTO EN SUP. LISA 8-10 M2/LT., FINEZA DE MOLIDO (HEGMAN) 3-7 UH.)  EN MUROS APLANADOS DE MEZCLA APALILLADO O PULIDO, TRABAJO TERMINADO, A DOS MANOS, INCLUYE: MATERIALES MENORES Y DE CONSUMO, ANDAMIOS, PREPARACION DE LA SUPERFICIE, SELLADO DE LA SUPERFICIE, HERRAMIENTAS, LIMPIEZA, MANO DE OBRA Y  ACARREOS DE MATERIALES AL SITIO DE SU UTILIZACIÓN.","M2 ","3,500.0000",0,"CERO PESOS 00/100 M.N.",0,260865]
["BIB.05(396)","LIMPIEZA                                          ",null,null,null,null,{"$f":"TEXT(SUM(G28:G31), \"$ #,##0.00 ;\")","v":"$ 0.00 "}]
[396022,"LIMPIEZA EN PISO DE CERAMICA, CON AGUA Y JABON.","M2 ","1,046.6000",0,"CERO PESOS 00/100 M.N.",0,260866]
[396032,"LIMPIEZA DE RECUBRIMIENTOS VIDRIADOS EN MUROS, CON JABON, AGUA Y ACIDO MURIATICO AL 10 %.","M2 ","242.2300",0,"CERO PESOS 00/100 M.N.",0,260867]
[396042,"LIMPIEZA DE VIDRIOS CON AGUA Y JABON, 2 CARAS.","M2 ","559.5500",0,"CERO PESOS 00/100 M.N.",0,260868]
[396222,"LIMPIEZA DE MUEBLES DE BAÑO, CON AGUA Y JABON.","PZA","17.0000",0,"CERO PESOS 00/100 M.N.",0,260869]
["BIB.06(510)","INSTALACION ELECTRICA EN EDIFICIO                 ",null,null,null,null,{"$f":"TEXT(SUM(G33:G59), \"$ #,##0.00 ;\")","v":"$ 0.00 "}]
[420578,"SUMINISTRO Y COLOCACION DE PERFIL TUBULAR ESTANDARD, DE 1.5\" X 1.5\" (CODIGO 11067), MCA. CUPRUM, LINEA PANORAMA O SIMILAR EN  ALUMINIO ANODIZADO COLOR NATURAL, PARA POSTES, REFUERZO Y/O AJUSTE DE PUERTAS, CUBIERTAS Y/O CANCELERIAS, INCLUYE: ELEMENTOS DE FIJACION, NIVELACION, ALINEACION, CORTES, AJUSTES, DESPERDICIOS, MATERIALES MENORES, HERRAMIENTAS, MANO DE OBRA, Y ACARREO DE MATERIALES AL SITIO DE SU UTLIZACION.","ML ","10.0000",0,"CERO PESOS 00/100 M.N.",0,260870]
[514024,"SALIDA ELECTRICA DE CENTRO AISLADA, OCULTA EN LOSA Y/O PLAFON CON TUBERIA Y CONEXIONES CONDUIT GALVANIZADA PARED DELGADA DE AJUSTE ETIQUETA VERDE DE 13 Y 19 MM. DE DIAMETRO, CABLE VINANEL THW-LS 600 V. A 75° C, 90° C, MARCA CONDUCTORES MONTERREY, (VIAKON-PROTOCOLIZADO), CABLE VINANEL 21 THW-LS 600 V. A 75° C, 90° C, MARCA CONDUMEX (CONDUMEX PROTOCOLIZADO).  CALIBRE 10 Y 12, CAJAS CUADRADAS, CHALUPAS Y TAPAS GALVANIZADAS, INCLUYE: TRAZO,  CORTES, AJUSTES, MATERIALES MENORES, SOPORTERIA, HERRAMIENTA, MANO DE OBRA ESPECIALIZADA , CONEXIONES, LIMPIEZA DEL AREA DE TRABAJO, PRUEBAS, DESPERDICIOS Y ACARREO DEL MATERIAL AL SITIO DE SU COLOCACION, A CUALQUIER NIVEL.","SAL","10.0000",0,"CERO PESOS 00/100 M.N.",0,260871]
[518019,"SALIDA ELECTRICA PARA CONTACTO DUPLEX POLARIZADO, OCULTA, CON TUBERIA Y CONEXIONES CONDUIT GALVANIZADA P.G., ETIQUETA VERDE DE AJUSTE DE 13 Y 19 MM. DE DIAMETRO,  CABLE VINANEL THW-LS 600 V. A 75° C, 90° C, MARCA CONDUCTORES MONTERREY, (VIAKON-PROTOCOLIZADO), CABLE VINANEL 21 THW-LS 600 V. A 75° C, 90° C, MARCA CONDUMEX (CONDUMEX PROTOCOLIZADO)., CALIBRE 10 Y 12, CAJAS DE REGISTRO  CUADRADAS, CHALUPAS Y TAPAS DE ACERO GALVANIZADO TIPO REFORZADO, CONTACTO QUINZIÑO, TAPA DE ALUMINIO, INCLUYE: TRAZO, RANURAS, CONEXION A TIERRA, MATERIALES MENORES, PRUEBAS, DESPERDICIOS Y ACARREO DEL MATERIAL AL SITIO DE SU COLOCACION, A CUALQUIER NIVEL.","SAL","10.0000",0,"CERO PESOS 00/100 M.N.",0,260872]
[518028,"SALIDA ELECTRICA PARA CONTACTO MONOFASICO DUPLEX POLARIZADO CON INDICADOR DE FALLAS A TIERRA OCULTA EN MURO Y/O PISO, CON TUBERIA CONDUIT GALVANIZADA PARED DELGADA DE AJUSTE ETIQUETA VERDE DE 13, 19 Y 25 MM. DE DIAMETRO,  CABLE VINANEL THW-LS 600 V. A 75° C, 90° C, MARCA CONDUCTORES MONTERREY, (VIAKON-PROTOCOLIZADO), CABLE VINANEL 21 THW-LS 600 V. A 75° C, 90° C, MARCA CONDUMEX (CONDUMEX PROTOCOLIZADO). CALIBRE 10 Y 12, CAJAS, CHALUPAS Y TAPAS GALVANIZADAS Y ACCESORIOS QUINZIÑO, INCLUYE: MATERIALES MENORES Y DE CONSUMO, ELEMENTOS DE FIJACION,  NIVELACION, TRAZO, RANURAS, AJUSTES, CONEXIONES, ACCESORIOS, DESPERDICIOS, CONEXION A TIERRA, PRUEBAS, LIMPIEZA,  HERRAMIENTAS, MANO DE OBRA Y ACARREOS. EN CUALQUIER NIVEL\n","SAL","10.0000",0,"CERO PESOS 00/100 M.N.",0,260873]
[518706,"CABLEADO DE SALIDA ELECTRICA PARA CONTACTO DUPLEX POLARIZADO, OCULTA, POR CANALIZACIÓN EXISTENTE, CON  CABLE VINANEL THW-LS 600 V. A 75° C, 90° C, MARCA CONDUCTORES MONTERREY, (VIAKON-PROTOCOLIZADO), CABLE VINANEL 21 THW-LS 600 V. A 75° C, 90° C, MARCA CONDUMEX (CONDUMEX PROTOCOLIZADO)., CALIBRE 10 Y 12, CONTACTO BTICINO CON PLACA DE RESINA,  INCLUYE: CONEXION A TIERRA, ACCESORIOS, MATERIALES MENORES Y DE CONSUMO, PRUEBAS, DESPERDICIOS Y ACARREO DEL MATERIAL AL SITIO DE SU COLOCACION, A CUALQUIER NIVEL. (NO INCLUYE DUCTERIA, REGISTROS Y CHALUPAS).","SAL","70.0000",0,"CERO PESOS 00/100 M.N.",0,260874]
[518726,"CABLEADO DE SALIDA PARA CONTACTOS DUPLEX POLARIZADOS REGULADO, CON TIERRA FISICA AISLADA, PARA SERVICIO A EQUIPOS DE COMPUTO EN LABORATORIO Y/O TALLER, POR CANALIZACIÓN EXISTENTE,  CON CABLE VINANEL THW-LS 600 V. A 75° C, 90° C, MARCA CONDUCTORES MONTERREY, (VIAKON-PROTOCOLIZADO), CABLE VINANEL 21 THW-LS 600 V. A 75° C, 90° C, MARCA CONDUMEX (CONDUMEX PROTOCOLIZADO).  CAL 10 EN FASES Y 12 EN TIERRA FISICA (INDEPENDIENTE),  CONTACTO DUPLEX POLARIZADO COLOR NARANJA CON TIERRA FISICA AISLADA DE 1F, 3H, 15 AMPS, INCLUYE: MATERIALES MENORES Y DE CONSUMO, DESPERDICIOS, ACCESORIOS BTICINO CON PLACA DE RESINA,, ELEMENTOS DE FIJACION, HERRAMIENTAS, PRUEBAS, MANO DE OBRA ESPECIALIZADA Y ACARREO DE MATERIALES. (NO INCLUYE DUCTERIA, REGISTROS Y CHALUPAS)","SAL","10.0000",0,"CERO PESOS 00/100 M.N.",0,260875]
[522020,"SALIDA ELECTRICA DE APAGADOR, OCULTA, CON TUBERIA Y CONEXIONES CONDUIT GALVANIZADA P.G., ETIQUETA VERDE DE AJUSTE DE 13 Y 19 MM. DE DIAMETRO, CABLE VINANEL THW-LS 600 V. A 75° C, 90° C, MARCA CONDUCTORES MONTERREY, (VIAKON-PROTOCOLIZADO), CABLE VINANEL 21 THW-LS 600 V. A 75° C, 90° C, MARCA CONDUMEX (CONDUMEX PROTOCOLIZADO). CALIBRE 10 Y 12, CAJAS CUADRADAS, CHALUPAS Y TAPAS GALVANIZADAS, APAGADOR QUINZIÑO, TAPA DE ALUMINIO, INCLUYE: MATERIALES MENORES, PRUEBAS, DESPERDICIOS Y ACARREO DEL MATERIAL AL SITIO DE SU COLOCACION, A CUALQUIER NIVEL.","SAL","10.0000",0,"CERO PESOS 00/100 M.N.",0,260876]
[522704,"CABLEADO DE SALIDA ELECTRICA PARA APAGADOR SENCILLO, POR CANALIZACIÓN EXISTENTE, CON CABLE VINANEL THW-LS 600 V. A 75° C, 90° C, MARCA CONDUCTORES MONTERREY, (VIAKON-PROTOCOLIZADO), CABLE VINANEL 21 THW-LS 600 V. A 75° C, 90° C, MARCA CONDUMEX (CONDUMEX PROTOCOLIZADO).  CALIBRE 12, INCLUYE: CONEXIONES, ACCESORIOS, APAGADOR BTICINO CON PLACA DE RESINA, MATERIALES MENORES,  HERRAMIENTA, MANO DE OBRA ESPECIALIZADA, LIMPIEZA DEL AREA DE TRABAJO, PRUEBAS, DESPERDICIOS Y ACARREO DEL MATERIAL AL SITIO DE SU COLOCACION, A CUALQUIER NIVEL. (NO INCLUYE DUCTERIA, REGISTROS Y CHALUPAS)","SAL","100.0000",0,"CERO PESOS 00/100 M.N.",0,260877]
[522714,"CABLEADO DE SALIDA ELECTRICA PARA APAGADOR DOBLE, POR CANALIZACIÓN EXISTENTE, CON CABLE VINANEL THW-LS 600 V. A 75° C, 90° C, MARCA CONDUCTORES MONTERREY, (VIAKON-PROTOCOLIZADO), CABLE VINANEL 21 THW-LS 600 V. A 75° C, 90° C, MARCA CONDUMEX (CONDUMEX PROTOCOLIZADO).  CALIBRE 12, INCLUYE: CONEXIONES, ACCESORIOS, APAGADOR BTICINO CON PLACA DE RESINA, MATERIALES MENORES,  HERRAMIENTA, MANO DE OBRA ESPECIALIZADA, LIMPIEZA DEL AREA DE TRABAJO, PRUEBAS, DESPERDICIOS Y ACARREO DEL MATERIAL AL SITIO DE SU COLOCACION, A CUALQUIER NIVEL. (NO INCLUYE DUCTERIA, REGISTROS Y CHALUPAS)","SAL","100.0000",0,"CERO PESOS 00/100 M.N.",0,260878]
[522738,"CABLEADO DE SALIDA ELECTRICA PARA APAGADOR TIPO ESCALERA, CON CABLE VINANEL THW-LS 600 V. A 75° C, 90° C, MARCA CONDUCTORES MONTERREY, (VIAKON-PROTOCOLIZADO), CABLE VINANEL 21 THW-LS 600 V. A 75° C, 90° C, MARCA CONDUMEX (CONDUMEX PROTOCOLIZADO).  CALIBRE 12, INCLUYE: CONEXIONES, ACCESORIOS, APAGADOR BTICINO CON PLACA DE ALUMINIO, MATERIALES MENORES,  HERRAMIENTA, MANO DE OBRA ESPECIALIZADA, LIMPIEZA DEL AREA DE TRABAJO, PRUEBAS, DESPERDICIOS Y ACARREO DEL MATERIAL AL SITIO DE SU COLOCACION, A CUALQUIER NIVEL. (NO INCLUYE DUCTERIA, REGISTROS Y CHALUPAS)","SAL","2.0000",0,"CERO PESOS 00/100 M.N.",0,260879]
[550300,"SUMINISTRO Y COLOCACION DE LUMINARIA COMPACTA PARA EMPOTRAR EN PLAFON DE 2 X 32 WATTS, MCA. NOVALUX O SIMILAR, FABRICADA CON GABINETE DE 1.22 X 0.61 MTS. FABRICADO EN LAMINA FORMADA Y PINTURA HORNEADA MICROPULVERIZADA COLOR BLANCO Y CON DIFUSOR DE ACRILICO MICROLINEAL TRANSPARENTE TERMOFORMADO RECUBIERTO CON PELICULA DE POLICARBONATO, LAMPARA FLUORESCENTE LINEAL T8, BASE G13, BALASTRO ELECTRONICO  DE ARRANQUE RAPIDO,  DE 2 X 32 WATTS,   LA LUMINARIA (COMPLETA) DEBERA CUMPLIR CON LA NORMA ANCE, INCLUYE: SUMINISTRO Y COLOCACION DE MANGUETERIA PARA PLAFON CON RETICULA DE 1.22 X 0.61 MTS. DE LAMINA GALVANIZADA CON PINTURA ESMALTADA A FUEGO COLOR BLANCO OSTION MATE,  MATERIALES DE FIJACION A BASE DE PERNO ROSCADO HILTI, TIRANTES DE ALAMBRE GALVANIZADO CAL. 14, CONEXION CON CABLE USO RUDO CAL 12,  ENCHUFE, CLAVIJA, COPIA DE CERTIFICACION ANCE ANEXA EN ELTRAMITE DE LA ESTIMACION, PRUEBAS, HERRAMIENTAS, MATERIALES MENORES Y DE CONSUMO, ELEMENTOS DE FIJACION, CONEXION, LIMPIEZA, MANO DE OBRA Y ACARREO DE MATERIALES AL SITIO DE SU COLOCACION.","PZA","15.0000",0,"CERO PESOS 00/100 M.N.",0,260880]
[919151,"SUMINISTRO Y COLOCACION DE LUMINARIA PARA EMPOTRAR PARA LÁMPARAS FLUORESCENTES LINEAL T-8 3X17W 4100 °K BASE G13 CUERPO DE ACERO FORMADO DIFUSOR DE ACRÍLICO P1 PINTURA HORNEADA MICROPULVERIZADA COLOR BLANCO BALASTRO ELECTRÓNICO 127/220 V MARCA HIGHLUMEN CODIGO C-TFA12-E223T817B. INCLUYE: MANO DE OBRA, HERRAMIENTAS, PRUEBAS, MATERIALES MENORES Y ACARREO DE MATERIALES HASTA EL SITIO DE SU COLOCACION.","PZA","4.0000",0,"CERO PESOS 00/100 M.N.",0,260881]
[919152,"SUMINISTRO Y COLOCACION DE LAMPARAS COMPACTA PARA EMPOTRAR EN PLAFON CIEGO, FABRICADA CON GABINETE METÁLICO  DE 61 X 61 CMS., Y REJILLA PARABOLICA CON ACABADO METALICO, MCA. LED DE MEXICO, CAT. LC-T8-24EPI/C, CON TUBOS LED T8 DE 3 X 8 WATTS,  FLUJO LUMINOSO 2400 LUMENS @140°, 24 WATTS DE CONSUMO TOTAL, TEMPERATURA DE COLOR 5000°K, 100 LUMENS/WATTS, VOLTAJE DE OPERACION 85/265 VCA, INCLUYE: TRAZO, ELEMENTOS DE FIJACION, MATERIALES MENORES, RECORTE DE FLAFON DE SER NECESARIO, LAMPARAS,  HERRAMIENTA, MANO DE OBRA ESPECIALIZADA, CONEXIONES CON CABLE USO RUDO CAL 12, LIMPIEZA DEL AREA DE TRABAJO, PRUEBAS, GARANTIAS, DESPERCIOS Y ACARREO DEL MATERIAL AL SITIO DE SU COLOCACION. A CUALQUIER NIVEL.","PZA","6.0000",0,"CERO PESOS 00/100 M.N.",0,260882]
[919153,"SUMINISTRO Y COLOCACION DE LUMINARIA DE EMPOTRAR PARA LÁMPARAS FLUORESCENTES LINEAL T-8 2X32W 4100 °K BASE G13 CUERPO DE ACERO FORMADO DIFUSOR DE ACRÍLICO P1 PINTURA HORNEADA MICROPULVERIZADA COLOR BLANCO BALASTRO ELECTRÓNICO 127/220 V MARCA HIGHLUMEN CODIGO C-TFA12-E242T832B. INCLUYE: MANO DE OBRA, HERRAMIENTAS, PRUEBAS, MATERIALES MENORES Y ACARREO DE MATERIALES HASTA EL SITIO DE SU COLOCACION.","PZA","2.0000",0,"CERO PESOS 00/100 M.N.",0,260883]
[919154,"SUMINISTRO Y COLOCACION DE LUMINARIA DE SOBREPONER DE 2X32 CON ACRÍLICO EN FORMA DE U, 2 TUBOS T8 DE 32 WATTS C/U Y BALASTRO ELECTRÓNICO MARCA HIGHLUMEN CODIGO C-SBV20-S42T832B, INCLUYE: MANO DE OBRA, HERRAMIENTAS, PRUEBAS, MATERIALES MENORES Y ACARREO DE MATERIALES HASTA EL SITIO DE SU COLOCACION.\n","PZA","2.0000",0,"CERO PESOS 00/100 M.N.",0,260884]
[919157,"SUMINISTRO Y COLOCACION DE LAMPARAS COMPACTA PARA EMPOTRAR EN PLAFON CIEGO, FABRICADA CON GABINETE METÁLICO  DE 122 X 61 CMS., Y REJILLA PARABOLICA CON ACABADO METALICO, MCA. LED DE MEXICO, CAT. LC-T8-54-EPI/C, CON TUBOS LED T8 DE 3 X 18 WATTS,  FLUJO LUMINOSO 5400 LUMENS @140°, 54 WATTS DE CONSUMO TOTAL, TEMPERATURA DE COLOR 6000°K, 100 LUMENS/WATTS, VOLTAJE DE OPERACION 85/265 VCA, INCLUYE: TRAZO, ELEMENTOS DE FIJACION, MATERIALES MENORES, RECORTE DE FLAFON DE SER NECESARIO, LAMPARAS,  HERRAMIENTA, MANO DE OBRA ESPECIALIZADA, CONEXIONES CON CABLE USO RUDO CAL 12, LIMPIEZA DEL AREA DE TRABAJO, PRUEBAS, GARANTIAS, DESPERCIOS Y ACARREO DEL MATERIAL AL SITIO DE SU COLOCACION. A CUALQUIER NIVEL.","PZA","5.0000",0,"CERO PESOS 00/100 M.N.",0,260885]
[919166,"SUMINISTRO Y  COLOCACION DE LUMINARIO PARA INTERIORES TIPO SPOT PARA EMPOTRAR EN TECHO, LOSA Y/O PLAFON, MCA. TECNOLITE, MOD. BALTIMORE YDLEDM-1/12.5W/40B, FABRICADA EN LAMINA DE ACERO CON ACABADO ESMALTADO COLOR BLANCO Y DIFUSOR DE CRISTAL ESMERILADO, VOLTAJE 127 V., OPERA CON UNA LAMPARA DE LED DE 12.5W, TEMPERATURA DE COLOR 4000K,  INCLUYE: ELEMENTOS DE FIJACION, MATERIALES MENORES, RECORTE DE PLAFON DE SER NECESARIO, LAMPARAS, DRIVER ELECTRÓNICO,  HERRAMIENTA, MANO DE OBRA ESPECIALIZADA, CONEXIONES, LIMPIEZA DEL AREA DE TRABAJO, PRUEBAS, DESPERCIOS Y ACARREO DEL MATERIAL AL SITIO DE SU COLOCACION. A CUALQUIER NIVEL.","PZA","10.0000",0,"CERO PESOS 00/100 M.N.",0,260886]
[919179,"SUMINISTRO Y  COLOCACION DE LUMINARIO PARA INTERIORES TIPO SPOT PARA EMPOTRAR EN TECHO, LOSA Y/O PLAFON, MCA. TECNOLITE, MOD. BAIRIKI YDLED-01/12W/40B, FABRICADA EN LAMINA DE ACERO CON ACABADO ESMALTADO COLOR BLANCO Y DIFUSOR DE CRISTAL ESMERILADO, VOLTAJE 127 V., OPERA CON UNA LAMPARA DE LED DE 12W, TEMPERATURA DE COLOR 4000K,  INCLUYE: ELEMENTOS DE FIJACION, MATERIALES MENORES, RECORTE DE PLAFON DE SER NECESARIO, LAMPARAS, DRIVER ELECTRÓNICO,  HERRAMIENTA, MANO DE OBRA ESPECIALIZADA, CONEXIONES, LIMPIEZA DEL AREA DE TRABAJO, PRUEBAS, DESPERCIOS Y ACARREO DEL MATERIAL AL SITIO DE SU COLOCACION. A CUALQUIER NIVEL.","PZA","5.0000",0,"CERO PESOS 00/100 M.N.",0,260887]
[919180,"SUMINISTRO Y COLOCACION DE LUMINARIA DE EMPOTRAR EN PISO PARA EXTERIORES, ARILLO DE ACERO INOXIDABLE CON DIFUSOR DE CRISTAL TEMPLADO HOUSING DE ALUMINIO ACABADO DE ACERO INOXIDABLE CON 3 SUPER LEDS LUXEON 3X1.2W, CONSUMO TOTAL 4.1 WATTS, MONOCROMATICO, DRIVER ELECTRONICO 127/220 V INTEGRADO, EMISION DE LUZ BLANCO AMBAR, MCA. CONSTRULITA, CAT. OU3034A, INCLUYE: ELEMENTOS DE FIJACION, MATERIALES MENORES, LAMPARAS,  HERRAMIENTA, MANO DE OBRA ESPECIALIZADA, CONEXIONES, LIMPIEZA DEL AREA DE TRABAJO, PRUEBAS, DESPERCIOS Y ACARREO DEL MATERIAL AL SITIO DE SU COLOCACION. A CUALQUIER NIVEL.\t\t\t\t\t\t\t\n","PZA","5.0000",0,"CERO PESOS 00/100 M.N.",0,260888]
[919181,"SUMINISTRO Y COLOCACION DE LUMINARIA DE EMPOTRAR EN PISO PARA EXTERIORES, ARILLO DE ACERO INOXIDABLE CON DIFUSOR DE CRISTAL TEMPLADO HOUSING DE ALUMINIO ACABADO DE ACERO INOXIDABLE CON 7 SUPER LEDS LUXEON 7X1.2W, CONSUMO TOTAL 9.7 WATTS, MONOCROMATICO, DRIVER ELECTRONICO 127/220 V INTEGRADO, EMISION DE LUZ BLANCO AMBAR, MCA. CONSTRULITA, CAT. OU3025A, INCLUYE: ELEMENTOS DE FIJACION, MATERIALES MENORES, LAMPARAS,  HERRAMIENTA, MANO DE OBRA ESPECIALIZADA, CONEXIONES, LIMPIEZA DEL AREA DE TRABAJO, PRUEBAS, DESPERCIOS Y ACARREO DEL MATERIAL AL SITIO DE SU COLOCACION. A CUALQUIER NIVEL.\t\t\t\t\t\t\t\n","PZA","10.0000",0,"CERO PESOS 00/100 M.N.",0,260889]
[919182,"SUMINISTRO Y COLOCACION DE LUMINARIA DE EMPOTRAR EN PISO PARA EXTERIORES, ARILLO DE ACERO INOXIDABLE CON DIFUSOR DE CRISTAL TEMPLADO HOUSING DE ALUMINIO ACABADO DE ACERO INOXIDABLE CON 7 SUPER LEDS LUXEON 7X1.2W, CONSUMO TOTAL 9.7 WATTS, MONOCROMATICO, DRIVER ELECTRONICO 127/220 V INTEGRADO, EMISION DE LUZ BLANCO AZUL, MCA. CONSTRULITA, CAT. OU3025Z, INCLUYE: ELEMENTOS DE FIJACION, MATERIALES MENORES, LAMPARAS,  HERRAMIENTA, MANO DE OBRA ESPECIALIZADA, CONEXIONES, LIMPIEZA DEL AREA DE TRABAJO, PRUEBAS, DESPERCIOS Y ACARREO DEL MATERIAL AL SITIO DE SU COLOCACION. A CUALQUIER NIVEL.\t\t\t\t\t\t\t\n","PZA","2.0000",0,"CERO PESOS 00/100 M.N.",0,260890]
[919183,"SUMINISTRO Y  COLOCACION DE LUMINARIO DIRIGIBLE PARA INTERIORES TIPO SPOT PARA EMPOTRAR EN TECHO, LOSA Y/O PLAFON, MCA. TECNOLITE, MOD. BANGKOK YDLEDM-2/8W/40, FABRICADA EN LAMINA DE ACERO CON ACABADO ESMALTADO COLOR BLANCO Y DIFUSOR DE CRISTAL ESMERILADO, VOLTAJE 127 V., OPERA CON UNA LAMPARA DE LED DE 8W, TEMPERATURA DE COLOR 4000K,  INCLUYE: ELEMENTOS DE FIJACION, MATERIALES MENORES, RECORTE DE PLAFON DE SER NECESARIO, LAMPARAS, DRIVER ELECTRÓNICO,  HERRAMIENTA, MANO DE OBRA ESPECIALIZADA, CONEXIONES, LIMPIEZA DEL AREA DE TRABAJO, PRUEBAS, DESPERCIOS Y ACARREO DEL MATERIAL AL SITIO DE SU COLOCACION. A CUALQUIER NIVEL.","PZA","3.0000",0,"CERO PESOS 00/100 M.N.",0,260891]
[919184,"SUMINISTRO Y  COLOCACION DE LUMINARIO TIPO SPOT PARA EMPOTRAR EN TECHO, LOSA Y/O PLAFON, MCA. LED DE MEXICO, CAT. SP-15S-15W, DE 20 CM. DE DIAMETRO, FLUJO LUMINOSO 1800 LUMENS @180°, 15 WATTS DE CONSUMO, TEMPERATURA DE COLOR 5000°C, 120 LUMENS/WATTS, VOLTAJE DE OPERACION 85/240 VCA, FABRICADA EN ALUMINIO ANODIZADO CON CUBIERTA DE ACRILICO APACA IP 54, INCLUYE: ELEMENTOS DE FIJACION, MATERIALES MENORES, RECORTE DE FLAFON DE SER NECESARIO, LAMPARAS,  HERRAMIENTA, MANO DE OBRA ESPECIALIZADA, CONEXIONES, LIMPIEZA DEL AREA DE TRABAJO, PRUEBAS, DESPERCIOS Y ACARREO DEL MATERIAL AL SITIO DE SU COLOCACION. A CUALQUIER NIVEL.","PZA","10.0000",0,"CERO PESOS 00/100 M.N.",0,260892]
[919185,"SUMINISTRO Y COLOCACION DE LUMINARIO DE EMPOTRAR FIJO PARA LAMPARA FLUORESCENTE SENCILLA 2X13 W, BASE GX24Q-1, CUERPO Y ARILLO DE ACERO FORMADO, REFLECTOR DE ALUMINIO ESPECULAR, PINTURA HORNEADA MICROPULVERIZADA COLOR BLANCO, BALASTRO ELECTRONICO A127 V INTEGRADO, MCA. CONSTRULITA, MOD. C01054B, INCLUYE: ELEMENTOS DE FIJACION, MATERIALES MENORES, RECORTE DE FLAFON DE SER NECESARIO, LAMPARAS,  HERRAMIENTA, MANO DE OBRA ESPECIALIZADA, CONEXIONES, LIMPIEZA DEL AREA DE TRABAJO, PRUEBAS, DESPERCIOS Y ACARREO DEL MATERIAL AL SITIO DE SU COLOCACION. A CUALQUIER NIVEL.","PZA","2.0000",0,"CERO PESOS 00/100 M.N.",0,260893]
[919186,"SUMINISTRO Y COLOCACION DE LUMINARIO DE EMPOTRAR FIJO PARA LAMAPARA FLUORESCENTE COMPACTA HELICOIDAL 13 W, BASE E26,CUERPO DE ARILLO DE TERMOPLASTICO INYECTADO, REFLECTOR DE PLASTICO METALIZADO ESPECULAR, DIFUSOR DE ACRILICO PLASTICO TRANSPARENTE COLOR BLANCO, MCA. CONSTRULITA, MOD. RE1023B, INCLUYE: ELEMENTOS DE FIJACION, MATERIALES MENORES, RECORTE DE FLAFON DE SER NECESARIO, LAMPARAS,  HERRAMIENTA, MANO DE OBRA ESPECIALIZADA, CONEXIONES, LIMPIEZA DEL AREA DE TRABAJO, PRUEBAS, DESPERCIOS Y ACARREO DEL MATERIAL AL SITIO DE SU COLOCACION. A CUALQUIER NIVEL.","PZA","2.0000",0,"CERO PESOS 00/100 M.N.",0,260894]
[919187,"SUMINISTRO Y  COLOCACION DE LUMINARIO TIPO SPOT PARA EMPOTRAR EN TECHO, LOSA Y/O PLAFON, MCA. LED DE MEXICO, CAT. SP-15S-EPI, DE 20 CM. DE DIAMETRO, FLUJO LUMINOSO 1800 LUMENS @180°, 15 WATTS DE CONSUMO, TEMPERATURA DE COLOR 5000°C, 120 LUMENS/WATTS, VOLTAJE DE OPERACION 85/240 VCA, FABRICADA EN ALUMINIO ANODIZADO CON CUBIERTA DE ACRILICO APACA IP 54, INCLUYE: ELEMENTOS DE FIJACION, MATERIALES MENORES, RECORTE DE FLAFON DE SER NECESARIO, LAMPARAS,  HERRAMIENTA, MANO DE OBRA ESPECIALIZADA, CONEXIONES, LIMPIEZA DEL AREA DE TRABAJO, PRUEBAS, DESPERCIOS Y ACARREO DEL MATERIAL AL SITIO DE SU COLOCACION. A CUALQUIER NIVEL.","PZA","4.0000",0,"CERO PESOS 00/100 M.N.",0,260895]
[928018,"SUMINISTRO Y  COLOCACION DE LUMINARIO TIPO SPOT PARA EMPOTRAR EN TECHO, LOSA Y/O PLAFON, MCA. LED DE MEXICO, MOD. SP-54HFS, CON  LAMPARA DE 6W, 120V COLOR BLANCO, INCLUYE: ELEMENTOS DE FIJACION, MATERIALES MENORES, RECORTE DE FLAFON DE SER NECESARIO, LAMPARAS,  HERRAMIENTA, MANO DE OBRA ESPECIALIZADA, CONEXIONES, LIMPIEZA DEL AREA DE TRABAJO, PRUEBAS, DESPERCIOS Y ACARREO DEL MATERIAL AL SITIO DE SU COLOCACION. A CUALQUIER NIVEL.","PZA","6.0000",0,"CERO PESOS 00/100 M.N.",0,260896]
["BIB.07(546)","EQUIPOS ELEC., EQ. DE A/A. Y REP. DE INSTALACION. ",null,null,null,null,{"$f":"TEXT(SUM(G61:G64), \"$ #,##0.00 ;\")","v":"$ 0.00 "}]
[546810,"SUMINISTRO E INSTALACION DE CUELLOS DE LONA AHULADA CAL 12 RESISTENTE A TEMPERATURAS DE HASTA 100 °C,  PARA ELIMINAR VIBRACIONES DEL EQUIPO HACIA EL SISTEMA DE DUCTO PARA AIRE, INCLUYE: TRAZO, CORTES, MATERIALES, FIJACION, DESPERCIOS,  EQUIPO, MATERIALES MENORES Y DE CONSUMO, HERRAMIENTAS, MANO DE OBRA TECNICA ESPECIALIZADA, CONFECCION, LIMPIEZA Y ACARREOS AL SITIO DE SU COLOCACION.","M2 ","50.0000",0,"CERO PESOS 00/100 M.N.",0,260897]
[546812,"AISLAMIENTO TERMICO PARA DUCTERIAS DEL SISTEMA DE AIRE ACONDICIONADO EN INTERIORES, A BASE DE PLACA DE FIBRA DE VIDRIO DE 1\" DE ESPESOR, CON ACABADO EN FOIL DE ALUMINIO COMO BARRERA DE VAPOR, SELLADO EN SUS TRASLAPES CON CINTA MASCIN TAPE DE ALUMINIO,  INCLUYE: TRAZO, CORTES, DESPERDICIOS, PEGAMENTOS, SELLADORES, MATERIALES, HERRAMIENTAS, LIMPIEZAS, ACARREOS, Y MANO DE OBRA ESPECIALIZADA. A CUALQUIER NIVEL.","M2 ","50.0000",0,"CERO PESOS 00/100 M.N.",0,260898]
[919167,"SUMINISTRO E INSTALACION DE DIFUSOR TIPO DIAMANTE DE 4 VIAS, NUCLEO REMOVIBLE, FABRICADO EN LAMINA DE ALUMINIO CON ACABADO EN PINTURA ELECTROSTATICA COLOR BLANCO, DE 61 X 61 CM.,  INCLUYE:  HERRAMIENTAS, MATERIALES MENORES Y DE FIJACION, LIMPIEZA, NIVELACION, PRUEBAS, MANO DE OBRA ESPECIALIZADA Y  ACARREO AL SITIO DE SU INSTALACION. ADEMAS DE GARANTIAS DE FABRICACION.","PZA","10.0000",0,"CERO PESOS 00/100 M.N.",0,260899]
[919168,"SUMINISTRO E INSTALACION DE REJILLA DE RETORNO CON PERFILES DE ACERO Y ALETAS CURVAS DE 1\" PARALELAS A LA DIMENSION MAS LARGA, FIJAS A 45\" DE DEFLEXION, ACABADO EN COLOR BLANCO DE 61 X 61 CM.,  INCLUYE MANO DE OBRA, HERRAMIENTA,MATERIALES MENORES, PRUEBAS, DESPERDICIOS Y ACARREO DEL MATERIAL HASTA EL SITIO DE SU COLOCACION A CUALQUIER NIVEL.","PZA","10.0000",0,"CERO PESOS 00/100 M.N.",0,260900]
["BIB.08(564)","INSTALACION HIDRAULICA, SANITARIA Y GAS EN EDIF.  ",null,null,null,null,{"$f":"TEXT(SUM(G66:G69), \"$ #,##0.00 ;\")","v":"$ 0.00 "}]
[590030,"SUMINISTRO E INSTALACION DE INODORO PARA FLUXOMETRO, MODELO OLIMPICO FLUX, COLOR BLANCO, MARCA AMERICAN STANDARD, INCLUYE: ASIENTO DE PLASTICO, MATERIALES MENORES Y DE CONSUMO, ELEMENTOS DE FIJACION, LIMPIEZA, CUELLO DE CERA CON GUIA, PRUEBAS, HERRAMIENTAS, MANO DE OBRA Y ACARREO DE MATERIALES AL SITIO DE SU COLOCACION.","PZA","1.0000",0,"CERO PESOS 00/100 M.N.",0,260901]
[590215,"SUMINISTRO Y COLOCACION DE LAVABO DE PEDESTAL, BLANCO, MARCA AMERICAN STANDARD. MOD. HABITAT, INCLUYE: PEDESTAL,  LLAVE ANGULAR FIG. 401, CESPOL CROMADO, LLAVE INDIVIDUAL MCA. URREA, FIG. 242, CUBRETALADROS, MATERIALES MENORES, MANO DE OBRA CALIFICADA HERRAMIENTA Y EQUIPO, PRUEBAS, ACARREO DE MATERIALES AL SITIO DE SU COLOCACION Y TODO LO NECESARIO PARA SU CORRECTA EJECUCION.","PZA","1.0000",0,"CERO PESOS 00/100 M.N.",0,260902]
[590265,"SUMINISTRO Y COLOCACION DE OVALIN DE SOBREPONER, MCA. AMERICAN STANDAR, MOD. CADET UNIVERSAL MONOMANDO, INCLUYE: LLAVES ANGULARES FIG. 401, CESPOL CROMADO MCA. URREA FIG. 207, LLAVE ECONOMIZADORA DE CIERRE AUTOMATICO MARCA HELVEX FIG. TV-120, MANGUERA COFLEX, DESPERDICIOS, MATERIALES MENORES Y DE CONSUMO, ELEMENTOS DE FIJACION, MANO DE OBRA, HERRAMIENTA, LIMPIEZA, EQUIPO, PRUEBAS Y ACARREO DE MATERIALES AL SITIO DE SU COLOCACION.","PZA","1.0000",0,"CERO PESOS 00/100 M.N.",0,260903]
[591556,"SUMINISTRO Y COLOCACION DE FLUXOMETRO PARA W.C. DE PALANCA, MARCA HELVEX MODELO 110/32 O SIMILAR, INCLUYE: MATERIALES MENORES, PRUEBAS Y ACARREO DE MATERIALES AL SITIO DE SU COLOCACION, A CUALQUIER NIVEL.","PZA","1.0000",0,"CERO PESOS 00/100 M.N.",0,260904]
["01","PLAZA Y ANDADORES",null,null,null,null,{"$f":"TEXT(SUM(G71 + G73 + G77 + G80 + G83 + G85), \"$ #,##0.00 ;\")","v":"$ 0.00 "}]
["01.01(140)","DEMOLICIONES, DESMONTAJES Y MECANICA DE SUELOS    ",null,null,null,null,{"$f":"TEXT(SUM(G72:G72), \"$ #,##0.00 ;\")","v":"$ 0.00 "}]
[906925,"CORTE CON DISCO EN PISOS DE CONCRETO CON UNA PROFUNDIDAD DE 0.05 M., INCLUYE: LIMPIEZA, HERRAMIENTA, MATERIAL Y MANO DE OBRA.","ML ","75.0000",0,"CERO PESOS 00/100 M.N.",0,260905]
["01.02(150)","TRABAJOS PRELIMINARES                             ",null,null,null,null,{"$f":"TEXT(SUM(G74:G76), \"$ #,##0.00 ;\")","v":"$ 0.00 "}]
[150020,"LIMPIEZA DE TERRENO RETIRANDO BASURA Y DESHIERBE FUERA DE LA OBRA. INCLUYE: HERRAMIENTAS, MANO DE OBRA, RECOLECCION, JUNTA Y RETIRO. (PROYECCION DE CUBIERTA).","M2 ","150.0000",0,"CERO PESOS 00/100 M.N.",0,260906]
[152204,"EXCAVACION EN CEPAS POR CUALQUIER MEDIO, MATERIAL TIPO \"B\", DE 0 A 2.00 M. DE PROFUNDIDAD, EN SECO, INCLUYE: AFINE DE TALUDES Y FONDO, TRASPALEOS,  MOVIMIENTOS Y ACARREOS DENTRO DE LA OBRA, HERRAMIENTAS Y MANO DE OBRA, MEDIDO EN BANCO.","M3 ","10.0000",0,"CERO PESOS 00/100 M.N.",0,260907]
[156002,"CARGA POR CUALQUIER MEDIO Y ACARREO EN CAMION DE MATERIAL DE DESPERDICIO PRODUCTO DE LAS EXCAVACIONES FUERA DE LA OBRA, A LUGAR PERMITIDO POR LAS AUTORIDADES CORRESPONDIENTES, MEDIDO EN BANCO. INCLUYE CARGA,  ACARREO Y DESCARGA A TIRO LIBRE, HERRAMIENTA, EQUIPO, MATERIALES DE CONSUMO Y MANO DE OBRA.","M3 ","10.0000",0,"CERO PESOS 00/100 M.N.",0,260908]
["01.03(160)","CIMENTACION                                       ",null,null,null,null,{"$f":"TEXT(SUM(G78:G79), \"$ #,##0.00 ;\")","v":"$ 0.00 "}]
[180103,"RELLENO COMPACTADO AL 95% PROCTOR, CON MATERIAL DE BANCO, EN CAPAS DE 15 CM DE ESPESOR, AGREGANDO AGUA PARA LOGRAR SU HUMEDAD OPTIMA, POR CUALQUIER MEDIO, INCLUYE: SUMINISTRO DE AGUA PARA LOGRAR HUMEDAD OPTIMA, TENDIDO, TRASPALEOS,  DESPERDICIOS, EQUIPO, PRUEBAS DE COMPACTACION, AFINE, NIVELACION, HERRAMIENTAS, MANO DE OBRA Y  ACARREO HASTA EL SITIO DE SU COLOCACION.  (VOLUMEN MEDIDO COMPACTADO).","M3 ","10.0000",0,"CERO PESOS 00/100 M.N.",0,260909]
[192352,"SUMINISTRO Y COLOCACION DE PLACA DE ACERO A-36 DE 4\" X 4\" X 1/4\" PARA FIJACION DE PASAMANOS O BARANDAL A MURO, ESTRUCTURA Y/O CIMENTACION, INCLUYE: MATERIALES, ANCLAS DE ANGULO, CORTES, FIJACION, SOLDADURA, HERRAMIENTAS Y MANO DE OBRA.\n","PZA","100.0000",0,"CERO PESOS 00/100 M.N.",0,260910]
["01.04(372)","PISOS                                             ",null,null,null,null,{"$f":"TEXT(SUM(G81:G82), \"$ #,##0.00 ;\")","v":"$ 0.00 "}]
[360565,"SUMINISTRO Y COLOCACION DE MALLA ELECTROSOLDADA 6X6-10/10 COMO REFUERZO EN PISOS DE CONCRETO, INCLUYE: DESPERDICIOS, TRASLAPES, HERRAMIENTA Y ACARREO DEL MATERIAL AL SITIO DE SU COLOCACION.","M2 ","150.0000",0,"CERO PESOS 00/100 M.N.",0,260913]
[932975,"PISO DE CONCRETO ESTAMPADO CON COLOR DE F¨C=200 KG/CM2, DE 10 CM. DE ESPESOR, CON CONCRETO RESISTENCIA NORMAL AGREGADO AL MAXIMO DE 3/4\", PREMEZCLADO, PREPARACION DE PISO CON COLOR Y ENCDURECEDOR ( A RAZON DE 2.50 KG/M2.) PARA ACABADO PULIDO, DESMOLDALTE 0.122 KG/M2, Y APLICACION DE SELLADOR ACRILICO A RAZON DE 0.232 LTS/M2. REFORZANDO CON MALLA ELECTROSOLDAD 6 X 6 /10-10. INCLUYE: TRAZO, NIVELACION , AFINE, Y COMPACTACION DEL TERRENO, DESPERDICIOS, ACARREOS, REGLADO, ESTAMPADO CON MOLDE DE POLIURETANO,  LAVADO CON AGUA A PRESION, CORTE CON DISCO DE DIAMANTE EN SECCIONES NO MAYORES A 3 M2, CIMBRA EN FRONTERAS, COLOR INDICADO EN OBRA POR LA SUPERVISION, DESCIMBRADO, COLADO, CURADO, LIMPIEZA, MANO DE OBRA Y EQUIPO.","M2 ","150.0000",0,"CERO PESOS 00/100 M.N.",0,260916]
["01.05(393)","PINTURA                                           ",null,null,null,null,{"$f":"TEXT(SUM(G84:G84), \"$ #,##0.00 ;\")","v":"$ 0.00 "}]
[393325,"PINTURA DE ESMALTE ALQUIDALICO ANTICORROSIVO, ACABADO BRILLANTE, PARA INTERIORES Y EXTERIORES QUE NO DESPRENDA VAPORES TÓXICOS NI OLORES DESAGRADABLES, CON LAS SIGUIENTES CARACTERÍSTICAS ( SÓLIDOS POR PESO 49-60%, SÓLIDOS POR VOLUMEN 40-46%, VISCOSIDAD DE 110-160 UK A 25°C, DENSIDAD 0.9-1.2 TON/M3., BRILLO A 60°C, 90%, TIEMPO DE SECADO AL TACTO, < O = 6 HRS., TIEMPO DE SECADO DURO < O = 24 HRS., ADHERENCIA 100%, DILUCIÓN MÁXIMA (AGUARRÁS, THINER), 15 %,  EN BARANDAL METALICO, EN COLOR DE ACUERDO A INDICADO POR SUPERVISIÓN MEDIDO POR UN SOLO LADO, TRABAJO TERMINADO, A DOS MANOS, INCLUYE: MATERIALES MENORES Y DE CONSUMO, PREPARACION DE LA SUPERFICIE, ANDAMIOS, HERRAMIENTAS, LIMPIEZA, MANO DE OBRA Y  EQUIPO DE SEGURIDAD. CUALQUIER ALTURA..","M2 ","250.0000",0,"CERO PESOS 00/100 M.N.",0,260922]
["01.06(396)","LIMPIEZA                                          ",null,null,null,null,{"$f":"TEXT(SUM(G86:G86), \"$ #,##0.00 ;\")","v":"$ 0.00 "}]
[396012,"LIMPIEZA DE PISOS DE CONCRETO CON AGUA Y ACIDO MURIATICO AL 10%.","M2 ","1,150.0000",0,"CERO PESOS 00/100 M.N.",0,260923]
[15,"CUARTO DE MAQUINAS",null,null,null,null,{"$f":"TEXT(SUM(G88 + G91 + G94 + G96 + G100 + G102 + G106 + G113), \"$ #,##0.00 ;\")","v":"$ 0.00 "}]
["15.01(319)","ENTREPISOS, CUBIERTA Y ACABADOS DE AZOTEA         ",null,null,null,null,{"$f":"TEXT(SUM(G89:G90), \"$ #,##0.00 ;\")","v":"$ 0.00 "}]
[324232,"FORJADO DE ZAVALETA EN AZOTEA A BASE DE JALCRETO SIMPLE F´C=100 KG/CM2, DE 15 CM POR LADO, A 45°, CON ACABADO APALILLADO, INCLUYE: MATERIALES, DESPERDICIOS, HERRAMIENTAS, EQUIPO DE SEGURIDAD, LIMPIEZA, MANO DE OBRA Y ACARREO DE MATERIALES AL LUGAR DE SU UTILIZACION A CUALQUIER NIVEL.","ML ","15.1000",0,"CERO PESOS 00/100 M.N.",0,260911]
[344125,"IMPERMEABILIZACION DE MUROS O LOSAS, A BASE DE MEMBRANA PREFABRICADA, MCA. IMPERQUIMIA, UNIPLAS AERO PLUS SBS, ALTO DESEMPEÑO CON VENTILACION ANTIABOLSAMIENTOS, FABRICADA A BASE DE ASFALTOS MODIFICADOS CON POLIMEROS SINTETICOS SBS (ESTIRENO BUTADIENO ESTIRENO) REFORZADA CON MALLA POLIESTER DE ALTA RESISTENCIA, ACABADO APARENTE A BASE DE GRAVILLA ESMALTADA A FUEGO, 4.5 MM  DE ESPESOR TOTAL, COLOR ROJO TERRACOTA, GARANTIA POR ESCRITO DE 10 AÑOS, POR LA EMPRESA CONTRATISTA., INCLUYE: LIMPIEZA Y PREPARACION DE LA SUPERFICIE, APLICACION DE PRIMER IMPERCOAT PRIMARIO SL, PARA ANCLAJE Y TAPAPORO DE LA SUPERFICIE, SELLADO DE FISURAS Y GRIETAS A BASE DE CEMENTO PLASTICO BITUMINOSO IMPERCOAT CEMENTO SBS, SUMINISTRO Y COLOCACION DE MEMBRANA POR MEDIO DE TERMOFUSION A BASE DE FUEGO DE SOPLETE DE GAS BUTANO, HACIENDO TRASLAPES MINIMOS DE 0.10 MTS. EN AMBOS SENTIDOS, SELLADO DE ORILLAS, REMATES Y TRASLAPES, MATERIALES MENORES Y DE CONSUMO, CORTES, DESPERDICIOS, LIMPIEZA GENERAL, HERRAMIENTAS, MANO DE OBRA ESPECIALIZADA Y ACARREOS AL SITIO DE SU COLOCACION.","M2 ","17.2500",0,"CERO PESOS 00/100 M.N.",0,260912]
["15.02(372)","PISOS                                             ",null,null,null,null,{"$f":"TEXT(SUM(G92:G93), \"$ #,##0.00 ;\")","v":"$ 0.00 "}]
[373026,"PISO DE CONCRETO HECHO EN OBRA F'C=200 KG/CM2, TMA 3/4\", DE 10 CMS. DE ESPESOR, ACABADO RAYADO CON BROCHA, EN FORMA INTERGRAL, SIN UTILIZACION DE PASTA, COLADO A CUADROS, CON REFUERZO DE MALLA ELECTROSOLDADA 6-6 / 10-10, INCLUYE: TRAZO, NIVELACION, AFINE Y COMPACTACION DEL TERRENO, MATERIALES, CIMBRA DE FRONTERA, DESCIMBRA, DESPERDICIOS, CURADO, VIBRADO, MUESTREADO, JUNTAS FRIAS, VOLTEADOR,  HERRAMIENTAS, MANO DE OBRA Y ACARREOS DE MATERIALES AL SITIO DE SU UTILIZACION.","M2 ","7.4000",0,"CERO PESOS 00/100 M.N.",0,260914]
[373502,"CEJA DE CONCRETO F'C=150 KG/CM2, TMA=3/4\" DE 12.0 X 18.0 CM DE SECCION PROMEDIO, ARMADA CON 1 VARILLA #3 (3/8\") Y ESTRIBOS DE 1/4\" @ 25.0 CM, EN CUALQUIER NIVEL. INCLUYE: CIMBRA APARENTE, DESCIMBRA, COLADO, VIBRADO, CURADO, PERFILADO, CHAFLANES, GOTERO, LIMPIEZA, HERRAMIENTAS, MATERIALES, DESPERDICIOS Y MANO DE OBRA.","ML ","10.7200",0,"CERO PESOS 00/100 M.N.",0,260915]
["15.03(382)","ELEMENTOS COMPLEMENTARIOS DE ALBAÑILERIA          ",null,null,null,null,{"$f":"TEXT(SUM(G95:G95), \"$ #,##0.00 ;\")","v":"$ 0.00 "}]
[382053,"BASE DE CONCRETO F'C=150 KG/CM, DE 15 CM DE ALTURA., ARMADA CON  VARILLAS DE 3/8\"@20 CM. EN AMBOS SENTIDOS, PARA COLOCACION DE EQUIPOS DE EN GENERAL,  ACABADO APALILLADO, INCLUYE: MATERIALES, COLADO, VIBRADO, CURADO, CIMBRA Y DESCIMBRA, NIVELACION,  DESPERDICIOS, REMATES,  HERRAMIENTAS, LIMPIEZA, MANO DE OBRA  Y ACARREO DE MATERIAL AL SITIO DE SU UTILIZACION, A CUALQUIER NIVEL.","M2 ","4.0000",0,"CERO PESOS 00/100 M.N.",0,260917]
["15.04(393)","PINTURA                                           ",null,null,null,null,{"$f":"TEXT(SUM(G97:G99), \"$ #,##0.00 ;\")","v":"$ 0.00 "}]
[393022,"PINTURA VINIL-ACRÍLICA A BASE DE AGUA ACABADO SEMIMATE  LAVABLE, PARA INTERIORES Y EXTERIORES QUE NO DESPRENDA VAPORES TÓXICOS NI OLORES DESAGRADABLES, CON LAS SIGUIENTES CARACTERÍSTICAS ( SÓLIDOS POR PESO 46-52%, SÓLIDOS POR VOLUMEN 30-36%, VISCOSIDAD DE 100-130 UK A 25°C, DENSIDAD > O = 1.2 TON/M3., LAVABILIDAD > O = 4,000 CICLOS, TIEMPO DE SECADO AL TACTO, 30-40 MIN., TIEMPO DE SECADO DURO < O = 8 HRS., CICLO DE CURADO DE 7 DIAS, PH 6-8, RENDIMIENTO EN SUP. LISA 8-10 M2/LT., FINEZA DE MOLIDO (HEGMAN) 3-7 UH.)  EN MUROS APLANADOS DE MEZCLA APALILLADO O PULIDO, TRABAJO TERMINADO, A DOS MANOS, INCLUYE: MATERIALES MENORES Y DE CONSUMO, ANDAMIOS, PREPARACION DE LA SUPERFICIE, SELLADO DE LA SUPERFICIE, HERRAMIENTAS, LIMPIEZA, MANO DE OBRA Y  ACARREOS DE MATERIALES AL SITIO DE SU UTILIZACIÓN.","M2 ","66.0000",0,"CERO PESOS 00/100 M.N.",0,260919]
[393052,"PINTURA VINIL-ACRÍLICA A BASE DE AGUA ACABADO SEMIMATE  LAVABLE, PARA INTERIORES Y EXTERIORES QUE NO DESPRENDA VAPORES TÓXICOS NI OLORES DESAGRADABLES, CON LAS SIGUIENTES CARACTERÍSTICAS ( SÓLIDOS POR PESO 46-52%, SÓLIDOS POR VOLUMEN 30-36%, VISCOSIDAD DE 100-130 UK A 25°C, DENSIDAD > O = 1.2 TON/M3., LAVABILIDAD > O = 4,000 CICLOS, TIEMPO DE SECADO AL TACTO, 30-40 MIN., TIEMPO DE SECADO DURO < O = 8 HRS., CICLO DE CURADO DE 7 DIAS, PH 6-8, RENDIMIENTO EN SUP. LISA 8-10 M2/LT., FINEZA DE MOLIDO (HEGMAN) 3-7 UH.)  EN LOSAS Y ELEMENTOS DE CONCRETO, TRABAJO TERMINADO, A DOS MANOS, INCLUYE: MATERIALES MENORES Y DE CONSUMO, ANDAMIOS, PREPARACION DE LA SUPERFICIE DE CONCRETO, SELLADO DE LA SUPERFICIE, HERRAMIENTAS, LIMPIEZA, MANO DE OBRA Y  EQUIPO DE SEGURIDAD. A CUALQUIER ALTURA.","M2 ","15.0000",0,"CERO PESOS 00/100 M.N.",0,260920]
[393122,"PINTURA DE ESMALTE ALQUIDALICO ANTICORROSIVO, ACABADO BRILLANTE, PARA INTERIORES Y EXTERIORES QUE NO DESPRENDA VAPORES TÓXICOS NI OLORES DESAGRADABLES, CON LAS SIGUIENTES CARACTERÍSTICAS ( SÓLIDOS POR PESO 49-60%, SÓLIDOS POR VOLUMEN 40-46%, VISCOSIDAD DE 110-160 UK A 25°C, DENSIDAD 0.9-1.2 TON/M3., BRILLO A 60°C, 90%, TIEMPO DE SECADO AL TACTO, < O = 6 HRS., TIEMPO DE SECADO DURO < O = 24 HRS., ADHERENCIA 100%, RENDIMIENTO EN SUP. LISA 8-10 M2/LT., DILUCIÓN MÁXIMA (AGUARRÁS, THINER), 15 %,  EN HERRERIA CERRADA (DUELA DE LAMINA ACANALADA), TRABAJO TERMINADO, A DOS MANOS, INCLUYE: MATERIALES MENORES Y DE CONSUMO, ANDAMIOS, PREPARACION DE LA SUPERFICIE, HERRAMIENTAS, LIMPIEZA, MANO DE OBRA Y  EQUIPO DE SEGURIDAD. A CUALQUIER NIVEL.","M2 ","10.0000",0,"CERO PESOS 00/100 M.N.",0,260921]
["15.05(396)","LIMPIEZA                                          ",null,null,null,null,{"$f":"TEXT(SUM(G101:G101), \"$ #,##0.00 ;\")","v":"$ 0.00 "}]
[396012,"LIMPIEZA DE PISOS DE CONCRETO CON AGUA Y ACIDO MURIATICO AL 10%.","M2 ","12.0000",0,"CERO PESOS 00/100 M.N.",0,260924]
["15.06(410)","CANCELERIA, HERRERIA, ALUMINIO, VIDRIOS Y CHAPAS  ",null,null,null,null,{"$f":"TEXT(SUM(G103:G105), \"$ #,##0.00 ;\")","v":"$ 0.00 "}]
[412013,"SUMINISTRO, FABRICACION Y COLOCACION DE HERRERIA TUBULAR Y/O ESTRUCTURAL, INCLUYE: SOLDADURA, ELEMENTOS DE FIJACION, MATERIALES MENORES, DESCALIBRES, DESPERDICIOS, BISAGRAS, FONDO ANTICORROSIVO, FLETES, HERRAMIENTAS, EQUIPO, MANO DE OBRA  Y ACARREO DE MATERIALES AL SITIO DE SU UTLIZACION.","KG ","115.0000",0,"CERO PESOS 00/100 M.N.",0,260926]
[424043,"SUMINISTRO Y COLOCACION DE CHAPA PHILLIPS X-720 O AS-725, INCLUYE: PERFORACIONES, ELEMENTOS DE FIJACION, HERRAMIENTAS, MANO DE OBRA Y  ACARREO DE MATERIAL AL SITIO DE SU UTILIZACION.","PZA","1.0000",0,"CERO PESOS 00/100 M.N.",0,260927]
[424082,"SUMINISTRO Y COLOCACION DE CERRADURA DE SOBREPONER DE SEGURIDAD CON UN SOLO CILINDRO DE ACCION POR AMBOS LADOS TIPO BARRA, MCA. PHILLIPS MODELO 800 FD, INCLUYE: ELEMANTOS DE FIJACION, AJUSTES PRUEBAS, HERRAMIENTAS Y MANO DE OBRA.","PZA","1.0000",0,"CERO PESOS 00/100 M.N.",0,260928]
["15.07(511)","INSTALACION ELECTRICA EN OBRA EXTERIOR            ",null,null,null,null,{"$f":"TEXT(SUM(G107:G112), \"$ #,##0.00 ;\")","v":"$ 0.00 "}]
[524526,"ALIMENTACION ELECTRICA DE FUERZA PARA SISTEMA DE EQUIPO HIDRONEUMATICO, CON TUBERIA Y CONEXIONES CONDUIT GALV. P.G. ROSCADA DE  25 MM. DE DIAMETRO,  Y TUBO LIQUATITE DE 1\" DE DIAM.,  CABLE VINANEL THW-LS 600 V. A 75° C, 90° C, MARCA CONDUCTORES MONTERREY, (VIAKON-PROTOCOLIZADO), CABLE VINANEL 21 THW-LS 600 V. A 75° C, 90° C, MARCA CONDUMEX (CONDUMEX PROTOCOLIZADO). CALIBRES 10, CONDULET RECTANGULAR FSC CON TAPA Y EMPAQUE,  INCLUYE: TRAZO,  MATERIALES MENORES, CONEXIONES, CONECTORES, HERRAMIENTAS,  PRUEBAS, CORTES, AJUSTES,  DESPERDICIOS, LIMPIEZAS,  MANO DE OBRA ESPECIALIZADA,  Y ACARREO DEL MATERIAL AL SITIO DE SU COLOCACION. (LONGITUD CONSIDERADA DESDE EL TABLERO DE ALIMENTACION AL TABLERO DEL EQUIPO, DENTRO DEL CUARTO)","SAL","1.0000",0,"CERO PESOS 00/100 M.N.",0,260929]
[540305,"SUMINISTRO E INSTALACION DE CENTRO DE CARGA CAT. QO-816L-100,  DE 8 POLOS  100 AMPERES, INCLUYE: MATERIALES, ZAPATAS, MANO DE OBRA, HERRAMIENTAS, ELEMENTOS DE FIJACION, PRUEBAS,  ACARREOS Y MATERIALES MENORES.","PZA","1.0000",0,"CERO PESOS 00/100 M.N.",0,260933]
[543012,"SUMINISTRO Y COLOCACION DE INTERRUPTOR TERMOMAGNETICO DERIVADO CON 1 POLOS, DE 15-60 AMPERES, MCA. SQUARE D, CAT. QO. INCLUYE: PRUEBAS, MATERIALES MENORES, HERRAMIENTAS, MANO DE OBRA ESPECIALIZADA  Y ACARREO DE MATERIALES AL SITIO DE SU COLOCACION.","PZA","3.0000",0,"CERO PESOS 00/100 M.N.",0,260934]
[543020,"SUMINISTRO Y COLOCACION DE INTERRUPTOR TERMOMAGNETICO CON 2 POLOS, DE 15-50 AMPERES, MCA. SQUARE D, CAT. QO. INCLUYE: PRUEBAS, FLETES, MATERIALES MENORES Y ACARREO DE MATERIALES AL SITIO DE SU COLOCACION.","PZA","2.0000",0,"CERO PESOS 00/100 M.N.",0,260935]
[550090,"SUMINISTRO E INSTALACION DE LUMINARIO FLUORESCENTE DE SOBREPONER, TIPO ENVOLVENTE, AHORRADOR DE ENERGIA DE 2 X 32 WATTS. FABRICADO EN LAMINA CAL 22, RECUBIERTO CON TRATAMIENTO FOSFATIZADO Y PINTURA ACRILICA O POLIESTER COLOR BLANCO, APLICADA ELECTROSTATICAMENTE Y TERMOENDURECIDA, PARA OBTENER UNA REFLECTANCIA MINIMA DE 90%, CON DIFUSOR ACRILICO PRISMATICO 100% PURO, TIPO ENVOLVENTE, CON UNA LONGITUD DE 120 CM., BALASTRO ELECTRONICO DE BAJA EMISION DE ARMONICAS, PARA OPERAR UNA O DOS LAMPARAS T8 DE 32 WATTS, LA LUMINARIA (COMPLETA) DEBERA CUMPLIR CON LA NORMA ANCE, INCLUYE: COPIA DE CERTIFICACION ANCE ANEXA EN ELTRAMITE DE LA ESTIMACION, FIJACION, CONEXION, MATERIALES MENORES, HERRAMIENTAS, GARANTIAS,  MANO DE OBRA, PRUEBAS Y ACARREOS.","PZA","1.0000",0,"CERO PESOS 00/100 M.N.",0,260936]
[551022,"SUMINISTRO E INSTALACION DE LUMINARIA INCANDESCENTE TIPO ARBOTANTE DE 25 HASTA 100 W., INCLUYE: SOCKET DE BAQUELITA, FOCO (DE 25 A 100 WATTS),  MATERIALES MENORES, PRUEBAS Y ACARREO DE MATERIALES AL SITIO DE SU COLOCACION.","PZA","2.0000",0,"CERO PESOS 00/100 M.N.",0,260937]
["15.08(565)","INSTALACION HIDRAULICA, SANITARIA Y GAS EN O. EXT.",null,null,null,null,{"$f":"TEXT(SUM(G114:G118), \"$ #,##0.00 ;\")","v":"$ 0.00 "}]
[579030,"SUCCION PARA LLENADO DE HIDRONEUMATICO A BASE DE TUBERIA DE COBRE DE 1 1/4\" A 1 1/2\" , DESDE LA CISTERNA HASTA EL EQUIPO DE BOMBEO, (DE ACUERDO A GUIAS DE INSTALACION PROPORCIONADAS POR CAPECE) CONSIDERANDO UNA DISTANCIA PROMEDIO DE 10 MTS. DESDE LA UBICACION DE LA CISTERNA AL EQUIPO HIDRONEUMATICO,  INCLUYE: TRAZO, EXCAVACIONES, RELLENOS,  ENCOFRACO CON CONCRETO F'C=100 KG/CM2, LINEAS DE SUCCION, LINEA DE RETORNO PARA PRUEBAS, PICHANCHA DE 1 1/2\", VALVULAS,  MATERIALES MENORES, DESPERDICIOS, CONEXIONES, PRUEBAS, LIMPIEZA,  Y ACARREO DE TODOS LOS MATERIALES AL SITIO DE SU UTILIZACION.","PZA","1.0000",0,"CERO PESOS 00/100 M.N.",0,260945]
[589317,"SUMINISTRO Y TENDIDO DE TUBERIA DE CPVC-CTS, PARA CEMENTAR  DE 50 MM DE DIAM. INCLUYE: TRAZO, CONEXIONES (COPLES, CODOS, TEES, NIPLES, ETC), DESPERDICIOS, ENCOFRADO CON CONCRETO F'C=100 KG/CM2 DE 6 X 15 CMS DE SECCION, MATERIALES MENORES Y DE CONSUMO, PRUEBAS, EXCAVACION, RELLENO, HERRAMIENTAS, MANO DE OBRA Y ACARREO DE MATERIALES AL SITIO DE SU COLOCACION.","ML ","50.0000",0,"CERO PESOS 00/100 M.N.",0,260947]
[591414,"SUMINISTRO Y COLOCACION DE VALVULA DE ESFERA (BOLA) EXTREMOS ROSCADOS 2\" (51 MM) DE DIAMETRO. MCA URREA, FIG. 550,  INCLUYE: MATERIALES MENORES Y DE CONSUMO, HERRAMIENTAS, PRUEBAS, LIMPIEZA, MANO DE OBRA Y ACARREOS DE MATERIALES AL SITIO DE SU COLOCACION.","PZA","2.0000",0,"CERO PESOS 00/100 M.N.",0,260948]
[592012,"SUMINISTRO Y COLOCACION DE CESPOL BOTE DE P.V.C. CON REJILLA CROMADA. INCLUYE: MATERIALES MENORES Y DE CONSUMO, HERRAMIENTAS, DESPERDICIOS, PRUEBAS, MANO DE OBRA Y ACARREO DE MATERIALES AL SITIO DE SU COLOCACION.","PZA","1.0000",0,"CERO PESOS 00/100 M.N.",0,260949]
[930842,"SUMINISTRO Y COLOCACION DE SISTEMA HIDRONEUMATICO INTEGRADO, ARMADO CON DE 2 MOTOBOMBAS CENTRIFUGAS 1 1/2\" DE SUCCION Y DESCARGA, ACOPLADAS A MOTORES ELECTRICOS DE 2 H.P. MOD. 3-200ME, 3500 R.P.M., 2 FASES, 220 VOLTS/60HERZ, UN TANQUE PRECARGADO DE 119 GALONES., PRESION DE TRABAJO 115LBS/PULG2, TABLERO DE CONTROL AUTOMATIZADO CON GABINETE DE LAMINA DE ACERO ROLADO EN FRIO, TABLERO DE CONTROL LOGICO PROGRAMABLE, PROTECCION CONTRA CORTOCIRCUITOS ICE, PROTECCION POR BAJO NIVEL DE CISTERNA (ELECTRONIVELES) LUCES DE INFORMACION DE TRABAJO ALTERNADOR CON SIMULTANEADOR PARA ALTA DEMANDA DE AGUA, AJUSTE AUTOMATICO DE ARRANQUE,  SISTEMA DE EMERGENCIA PROGRAMADO, DIAGRAMAS COMPLETOS, SISTEMA RESTRICTOR DE FLUJO POR BOMBA, CABEZAL DE DESCARGA DE 3\" BRIDADO, VALVULAS DE CIERRE RAPIDO, VALVULA CHECK PARA CEBADO, BRIDA DE CONEXIÓN PARA CADA MOTOBOMBA  Y VALVULA DE RETORNO DE 1 ¼\", PORTATABLERO METALICO AUTO SOPORTABLE CON MULTIPLES DE AJUSTES, CHASIS METALICO CON SISTEMA ANTICORROSIVO INTEGRADO, INCLUYE: CONEXIONES HIDRAULICAS Y ELECTRICAS, MATERIALES MENORES Y DE CONSUMO, ELEMENTOS DE FIJACION, CALIBRACION, PRUEBAS, PUESTA EN MARCHA, GARANTIAS POR ESCRITO POR 5 AÑOS, MANUAL DE OPERACION, FLETES, ARRASTRES,  HERRAMIENTA, LIMPIEZAS, MANO DE OBRA ESPECIALIZADA Y TRASLADOS AL SITIO DE SU INSTALACION.","PZA","1.0000",0,"CERO PESOS 00/100 M.N.",0,260951]
["04","RED HIDRAULICA",null,null,null,null,{"$f":"TEXT(SUM(G120 + G122), \"$ #,##0.00 ;\")","v":"$ 0.00 "}]
["04.01(382)","ELEMENTOS COMPLEMENTARIOS DE ALBAÑILERIA          ",null,null,null,null,{"$f":"TEXT(SUM(G121:G121), \"$ #,##0.00 ;\")","v":"$ 0.00 "}]
[383014,"FORJADO EN OBRA DE BASE DE CONCRETO F´C= 150 KG/CM2, DE 10 CM DE ESPESOR, PARA TOMA DE RIEGO Y/O MANGUERA, CON FORMA TRAPEZOIDAL, MEDIDAS GENERALES DE 65 CM DE BASE INFERIOR, 30 CM DE BASE SUPERIOR Y 95 CM DE ALTURA TOTAL EMPOTRADE EN EL TERRENO NATURAL 30 CM, ARMADA CON MALLA ELECTROSOLDADA 6 X 6 - 10/10, CON SALIDA PARA HIDRANTE A BASE DE TUBERIA DE CPVC DE 3/4\" DE DIAMETRO, INCLUYE: TRAZO, EXCAVACIONES, CIMBRA APARENTE, DECIMBRADO, CHAFLANES, COLADO, CURADO, VIBRADO,  MATERIALES, DESPERDICIOS, 1 MTS DE TUBO DE CPVC, CONEXIONES, PEGAMENTO, LLAVE DE CHORRO PARA MANGUERA DE 3/4\" MCA. URREA FIG. 19N, MANO DE OBRA, HERRAMIENTAS, LIMPIEZA, Y ACARREO DE MATERIALES AL SITIO DE SU UTILIZACION.","PZA","4.0000",0,"CERO PESOS 00/100 M.N.",0,260918]
["04.02(565)","INSTALACION HIDRAULICA, SANITARIA Y GAS EN O. EXT.",null,null,null,null,{"$f":"TEXT(SUM(G123:G124), \"$ #,##0.00 ;\")","v":"$ 0.00 "}]
[589313,"SUMINISTRO Y TENDIDO DE TUBERÍA DE CPVC-CTS, PARA CEMENTAR  DE 19 MM DE DIAM. INCLUYE: TRAZO, CONEXIONES (COPLES, CODOS, TEES, NIPLES, ETC), DESPERDICIOS, ENCOFRADO CON CONCRETO F'C=100 KG/CM2 DE 6 X 15 CMS DE SECCION, MATERIALES MENORES Y DE CONSUMO, PRUEBAS, EXCAVACIÓN, RELLENO, HERRAMIENTAS, MANO DE OBRA Y ACARREO DE MATERIALES AL SITIO DE SU COLOCACIÓN.","ML ","203.5500",0,"CERO PESOS 00/100 M.N.",0,260946]
[596002,"REGISTRO HIDRAULICO DE 0.40 X 0.40 X 0.60 M, CON MURO DE LADRILLO DE LAMA 5.5 X 11.0 X 22.0 CM, ASENTADO CON MORTERO CEMENTO-ARENA 1:3, A SOGA, APLANADO CON MORTERO CEMENTO-ARENA DE RIO 1:3,  Y PISO DE CONCRETO ACABADO PULIDO. INCLUYE: TRAZO, EXCAVACIONES, NIVELACION, RELLENO CON MATERIAL PRODUCTO DE EXCAVACION, RETIRO DE MATERIAL EXCEDENTE FUERA DE LA OBRA, TAPA DE CONCRETO F'C=200 KG/CM2, MARCO Y CONTRAMARCO DE ANGULO DE 1 1/2\" X 1/8\", MATERIALES, DESPERDICIOS, HERRAMIENTAS, MANO DE OBRA, LIMPIEZA, RETIRO DE MATERIAL PRODUCTO DE EXCAVACION FUERA DE LA OBRA Y ACARREO DE MATERIALES AL SITIO DE SU UTILIZACION.","PZA","2.0000",0,"CERO PESOS 00/100 M.N.",0,260950]
[73,"REJAS Y BARANDALES",null,null,null,null,{"$f":"TEXT((G126), \"$ #,##0.00 ;\")","v":"$ 0.00 "}]
["73.01(410)","CANCELERIA, HERRERIA, ALUMINIO, VIDRIOS Y CHAPAS  ",null,null,null,null,{"$f":"TEXT(SUM(G127:G127), \"$ #,##0.00 ;\")","v":"$ 0.00 "}]
[412006,"SUMINISTRO, FABRICACION Y COLOCACION DE HERRERIA TUBULAR Y/O ESTRUCTURAL PARA BARANDAL O PASAMANOS,  INCLUYE: SOLDADURA, CORTES, AJUSTES, MATERIALES MENORES, DESCALIBRES, DESPERDICIOS, BISAGRAS, FONDO ANTICORROSIVO, FLETES, HERRAMIENTAS, MANO DE OBRA, Y ACARREO DE MATERIALES AL SITIO DE SU UTLIZACION.","KG ","1,210.0000",0,"CERO PESOS 00/100 M.N.",0,260925]
["02","RED ELECTRICA",null,null,null,null,{"$f":"TEXT((G129), \"$ #,##0.00 ;\")","v":"$ 0.00 "}]
["02.01(511)","INSTALACION ELECTRICA EN OBRA EXTERIOR            ",null,null,null,null,{"$f":"TEXT(SUM(G130:G139), \"$ #,##0.00 ;\")","v":"$ 0.00 "}]
[534004,"SUMINISTRO Y TENDIDO DE TUBO CONDUIT DE P.V.C. PESADO, DE 19 MM DIAM. INCLUYE: CONEXIONES, TRAZO, EXCAVACION, RELLENO, DESPERDICIOS, MATERIALES MENORES, PRUEBAS Y ACARREO AL SITIO DE SU COLOCACION.","ML ","200.0000",0,"CERO PESOS 00/100 M.N.",0,260930]
[536008,"SUMINISTRO Y COLOCACION DE CABLE VINANEL THW-LS 600 V. A 75° C, 90° C, MARCA CONDUCTORES MONTERREY, (VIAKON-PROTOCOLIZADO), CABLE VINANEL 21 THW-LS 600 V. A 75° C, 90° C, MARCA CONDUMEX (CONDUMEX PROTOCOLIZADO). CAL. 10,  INCLUYE: DESPERDICIOS, MATERIALES MENORES, HERRAMIENTA, CONEXIONES, MANO DE OBRA ESPECIALIZADA, LIMPIEZA DEL AREA DE TRABAJO, PRUEBAS Y ACARREO AL SITIO DE SU COLOCACION.","ML ","500.0000",0,"CERO PESOS 00/100 M.N.",0,260931]
[537112,"SUMINISTRO Y COLOCACION DE CABLE DE COBRE DESNUDO CAL. 8, AWG, MCA. CONDUMEX, CONELEC O CONDUCTORES MONTERREY. INCLUYE: DESPERDICIOS, MATERIALES MENORES, PRUEBAS Y ACARREO AL SITIO DE SU COLOCACION.","ML ","200.0000",0,"CERO PESOS 00/100 M.N.",0,260932]
[552022,"SUMINISTRO E INSTALACION DE FOTOCELDA CON BASE DE 1000 WATTS. 220 VOLTS.  INC.: MATERIALES MENORES, PRUEBAS Y ACARREO DE MATERIALES AL SITIO DE SU COLOCACION.","PZA","10.0000",0,"CERO PESOS 00/100 M.N.",0,260938]
[552215,"SUMINISTRO E INSTALACION DE LUMINARIA PUNTA DE POSTE LIBRA-ATP DE 150W 220V, ADITIVOS CERAMICOS DE COLOR CONSTANTE, INCLUYE: FOCO, FIJACION, MATERIALES MENORES, HERRAMIENTAS, ANDAMIOS, PRUEBAS MANO DE OBRA Y ACARREO AL SITIO DE SU COLOCACION.","PZA","10.0000",0,"CERO PESOS 00/100 M.N.",0,260939]
[555122,"SUMINISTRO Y COLOCACION DE POSTE DE FIERRO CONICO CIRCULAR DE 6.00 MTS. DE ALTURA CON PINTURA ANTICORROSIVA Y PINTURA DE ESMALTE DE ACABADO EN COLOR VERDE JARDIN, INCLUYE; BASE DE CONCRETO F'C=200 KG/CM2 TRAPEZOIDAL DE 60 X 60 CMS. DE BASE INFERIOR, 40 X 40 CMS, BASE SUPERIOR, Y 80 CMS. DE ALTURA, ANCLAS, MATERIALES MENORES, PRUEBAS Y ACARREO DEL MATERIAL AL SITIO DE SU COLOCACION.","PZA","10.0000",0,"CERO PESOS 00/100 M.N.",0,260940]
[880618,"SUMINISTRO Y COLOCACION DE REGISTRO ELECTRICO PARA ALUMBRADO, PREFABRICADO  DE 0.40 X 0.40 X 0.60 MTS. CON TAPA DE CONCRETO,  MARCO Y CONTRAMARCO DE FIERRO GALVANIZADO, INCLUYE: TRAZO, EXCAVACION, TAPA DE CONCRETO CON MARCO Y CONTRAMARCO DE ANGULO, RELLENO, FILTRO DE GRAVA, HERRAMIENTAS, MANO DE OBRA, FLETES, ACARREO AL SITIO DE SU COLOCACION Y LIMPIEZA DEL AREA DE TRABAJO.","PZA","10.0000",0,"CERO PESOS 00/100 M.N.",0,260941]
[907497,"IDENTIFICACION DE CABLEADOS EXISTENTES DENTRO DE REGISTRO, EN COMBINACION CON LA RED DE ALIMENTADORES Y LOS OTROS REGISTROS, INCLUYE: LEVANTAMIENTO FISICO DE CADA CONDUCTOR, LIMPIEZA DE LA CUBIERTA PARA VERIFICAR EL CALIBRE, IDENTIFICACION DEL CIRCUITO AL QUE PERTENECE, MATERIALES MENORES Y DE CONSUMO, HERRAMIENTAS Y MANO DE OBRA.","PZA","250.0000",0,"CERO PESOS 00/100 M.N.",0,260942]
[916498,"CONEXION E IDENTIFICACION ALIMENTADORES EXISTENTES EN NUEVOS TABLEROS, INCLUYE: PRUEBAS, BALANCEO, SEPARCION Y ACOMODO DE CABLEADO, MATERIAL MENORES Y DE CONSUMO, MANO DE OBRA ESPECIALIZADA, LIMPIEZA, HERRAMIENTAS Y EQUIPO. (SE CONSIDERARA LA TOTALIDAD DEL CONJUNTO  DE CABLES EN EL INTERIOR DEL TABLERO)","PZA","5.0000",0,"CERO PESOS 00/100 M.N.",0,260943]
[973479,"SUMINISTRO Y COLOCACION DE POLIDUCTO TIPO PAD RD-19 DE 2\" DE DIÁMETRO, INCLUYE: MATERIALES, DESPERDICIOS, TENDIDO, MANO DE OBRA, HERRAMIENTA Y TODO LO NECESARIO PARA LA CORRECTA EJECUCIÓN.","ML ","200.0000",0,"CERO PESOS 00/100 M.N.",0,260944]
[null,"RESUMEN DE PARTIDAS"]
["SUP-CON-04834","TRABAJOS DE TERMINACIÓN DEL CENTRO DE INFORMACIÓN EN LA UNIVERSIDAD POLITÉCNICA DE LA ZONA METROPOLITANA DE GUADALAJARA CCT 14ESU0026R, UBICADA EN LA UNIÓN DEL CUATRO-LOMAS DE TEJEDA, MUNICIPIO DE TLAJOMULCO DE ZÚÑIGA, JALISCO.",null,null,null,null,{"$f":"G17","v":"$ 0.00 "}]
["BIB","BIBLIOTECA",null,null,null,null,{"$f":"G18","v":"$ 0.00 "}]
["BIB.01(150)","TRABAJOS PRELIMINARES                             ",null,null,null,null,{"$f":"G19","v":"$ 0.00 "}]
["BIB.02(319)","ENTREPISOS, CUBIERTA Y ACABADOS DE AZOTEA         ",null,null,null,null,{"$f":"G21","v":"$ 0.00 "}]
["BIB.03(372)","PISOS                                             ",null,null,null,null,{"$f":"G23","v":"$ 0.00 "}]
["BIB.04(393)","PINTURA                                           ",null,null,null,null,{"$f":"G25","v":"$ 0.00 "}]
["BIB.05(396)","LIMPIEZA                                          ",null,null,null,null,{"$f":"G27","v":"$ 0.00 "}]
["BIB.06(510)","INSTALACION ELECTRICA EN EDIFICIO                 ",null,null,null,null,{"$f":"G32","v":"$ 0.00 "}]
["BIB.07(546)","EQUIPOS ELEC., EQ. DE A/A. Y REP. DE INSTALACION. ",null,null,null,null,{"$f":"G60","v":"$ 0.00 "}]
["BIB.08(564)","INSTALACION HIDRAULICA, SANITARIA Y GAS EN EDIF.  ",null,null,null,null,{"$f":"G65","v":"$ 0.00 "}]
["01","PLAZA Y ANDADORES",null,null,null,null,{"$f":"G70","v":"$ 0.00 "}]
["01.01(140)","DEMOLICIONES, DESMONTAJES Y MECANICA DE SUELOS    ",null,null,null,null,{"$f":"G71","v":"$ 0.00 "}]
["01.02(150)","TRABAJOS PRELIMINARES                             ",null,null,null,null,{"$f":"G73","v":"$ 0.00 "}]
["01.03(160)","CIMENTACION                                       ",null,null,null,null,{"$f":"G77","v":"$ 0.00 "}]
["01.04(372)","PISOS                                             ",null,null,null,null,{"$f":"G80","v":"$ 0.00 "}]
["01.05(393)","PINTURA                                           ",null,null,null,null,{"$f":"G83","v":"$ 0.00 "}]
["01.06(396)","LIMPIEZA                                          ",null,null,null,null,{"$f":"G85","v":"$ 0.00 "}]
[15,"CUARTO DE MAQUINAS",null,null,null,null,{"$f":"G87","v":"$ 0.00 "}]
["15.01(319)","ENTREPISOS, CUBIERTA Y ACABADOS DE AZOTEA         ",null,null,null,null,{"$f":"G88","v":"$ 0.00 "}]
["15.02(372)","PISOS                                             ",null,null,null,null,{"$f":"G91","v":"$ 0.00 "}]
["15.03(382)","ELEMENTOS COMPLEMENTARIOS DE ALBAÑILERIA          ",null,null,null,null,{"$f":"G94","v":"$ 0.00 "}]
["15.04(393)","PINTURA                                           ",null,null,null,null,{"$f":"G96","v":"$ 0.00 "}]
["15.05(396)","LIMPIEZA                                          ",null,null,null,null,{"$f":"G100","v":"$ 0.00 "}]
["15.06(410)","CANCELERIA, HERRERIA, ALUMINIO, VIDRIOS Y CHAPAS  ",null,null,null,null,{"$f":"G102","v":"$ 0.00 "}]
["15.07(511)","INSTALACION ELECTRICA EN OBRA EXTERIOR            ",null,null,null,null,{"$f":"G106","v":"$ 0.00 "}]
["15.08(565)","INSTALACION HIDRAULICA, SANITARIA Y GAS EN O. EXT.",null,null,null,null,{"$f":"G113","v":"$ 0.00 "}]
["04","RED HIDRAULICA",null,null,null,null,{"$f":"G119","v":"$ 0.00 "}]
["04.01(382)","ELEMENTOS COMPLEMENTARIOS DE ALBAÑILERIA          ",null,null,null,null,{"$f":"G120","v":"$ 0.00 "}]
["04.02(565)","INSTALACION HIDRAULICA, SANITARIA Y GAS EN O. EXT.",null,null,null,null,{"$f":"G122","v":"$ 0.00 "}]
[73,"REJAS Y BARANDALES",null,null,null,null,{"$f":"G125","v":"$ 0.00 "}]
["73.01(410)","CANCELERIA, HERRERIA, ALUMINIO, VIDRIOS Y CHAPAS  ",null,null,null,null,{"$f":"G126","v":"$ 0.00 "}]
["02","RED ELECTRICA",null,null,null,null,{"$f":"G128","v":"$ 0.00 "}]
["02.01(511)","INSTALACION ELECTRICA EN OBRA EXTERIOR            ",null,null,null,null,{"$f":"G129","v":"$ 0.00 "}]
[]
["IMPORTE CON LETRA (IVA INCLUIDO)",null,null,null,null,"SUBTOTAL M.N.",{"$f":"TEXT(G17,  \"$ #,##0.00 ;\")","v":"$ 0.00 "}]
[{"$f":"UPPER(CONVERTIRNUM(ROUND( G17 * 1.16, 2)))","v":"CERO PESOS 00/100 M.N."},null,null,null,null,"IVA M.N.",{"$f":"TEXT(ROUND( G17 * 0.16, 2),  \"$ #,##0.00 ;\")","v":"$ 0.00 "}]
[null,null,null,null,null,"TOTAL M.N.",{"$f":"TEXT(ROUND( G17 * 1.16, 2),  \"$ #,##0.00 ;\")","v":"$ 0.00 "}]